bitfinex-derivatives/quotes_BTCF0:USTF0_20250324
["timestamp","ask_amount","ask_price","bid_price","bid_amount"]
[1742787384102,0.23421021,86466.0,86465.0,0.2627914]
[1742787384403,0.21795021,86466.0,86465.0,0.2617914]
[1742787384709,0.33591021,86466.0,86465.0,0.2617914]
[1742787385208,0.28491021,86466.0,86465.0,0.2617914]
[1742787387312,0.38491021,86466.0,86465.0,0.09784]
[1742787387613,0.28491021,86466.0,86465.0,0.2124514]
[1742787387803,0.28491021,86466.0,86465.0,0.2134514]
[1742787388512,0.28491021,86466.0,86465.0,0.0978]
[1742787388915,0.28491021,86466.0,86465.0,0.2134514]
[1742787389408,0.28491021,86466.0,86465.0,0.0978]
[1742787389910,0.1156928,86436.0,86435.0,0.1735304]
[1742787390112,0.1735385,86436.0,86435.0,0.1742104]
[1742787390307,0.1735385,86436.0,86435.0,0.00068]
[1742787390507,0.1742185,86436.0,86435.0,0.1163715]
[1742787390714,0.1742185,86436.0,86435.0,0.00068]
[1742787391008,0.1742185,86436.0,86435.0,0.05078]
[1742787391212,0.1742185,86436.0,86435.0,0.0501]
[1742787391415,0.2899117,86436.0,86435.0,0.00072]
[1742787391619,0.1156928,86434.0,86433.0,0.052]
[1742787391810,0.47709281,86434.0,86433.0,0.052]
[1742787392004,0.1156942,86433.0,86432.0,0.0501]
[1742787392312,0.42441421,86433.0,86432.0,0.0501]
[1742787392510,0.33441421,86433.0,86432.0,0.0501]
[1742787392716,0.1156955,86432.0,86431.0,0.00046279]
[1742787392913,0.11629551,86432.0,86431.0,0.00046279]
[1742787393111,0.21969551,86432.0,86431.0,0.11615969]
[1742787393319,0.00060001,86432.0,86431.0,0.11615969]
[1742787393522,0.00060001,86432.0,86431.0,0.11683969]
[1742787393721,0.11629551,86432.0,86431.0,0.21933969]
[1742787394528,0.11629551,86432.0,86431.0,0.10364279]
[1742787395022,0.16709551,86432.0,86431.0,0.10364279]
[1742787395537,0.11629551,86432.0,86431.0,0.10364279]
[1742787396029,0.11629551,86432.0,86431.0,0.21933969]
[1742787399431,0.11629551,86432.0,86431.0,0.10364279]
[1742787399636,0.16559551,86432.0,86431.0,0.10364279]
[1742787400633,0.11629551,86432.0,86431.0,0.21933969]
[1742787400838,0.11856001,86432.0,86431.0,0.21933969]
[1742787401633,0.23425551,86432.0,86431.0,0.21933969]
[1742787401825,0.11856001,86432.0,86431.0,0.21933969]
[1742787403734,0.00060001,86432.0,86431.0,0.21933969]
[1742787405734,0.11629551,86432.0,86431.0,0.21933969]
[1742787408542,0.00060001,86432.0,86431.0,0.21933969]
[1742787409434,0.11629551,86432.0,86431.0,0.21933969]
[1742787410534,0.00060001,86432.0,86431.0,0.21933969]
[1742787410929,0.11629551,86432.0,86431.0,0.21933969]
[1742787411745,0.00060001,86432.0,86431.0,0.21933969]
[1742787412044,0.00017356,86444.0,86443.0,0.1156808]
[1742787412240,0.11792,86458.0,86443.0,0.00096]
[1742787412442,0.00116,86458.0,86457.0,0.1156621]
[1742787412632,0.47872,86465.0,86464.0,0.1156527]
[1742787412837,0.47988,86465.0,86464.0,0.1168127]
[1742787413039,0.5955314,86465.0,86464.0,0.1168127]
[1742787413746,0.2347314,86465.0,86464.0,0.1168127]
[1742787415439,0.2347314,86465.0,86464.0,0.1647127]
[1742787419435,0.3503858,86465.0,86464.0,0.04906]
[1742787419747,0.4495858,86465.0,86464.0,0.0479]
[1742787419939,0.4495858,86465.0,86464.0,0.04906]
[1742787420140,0.4495858,86465.0,86464.0,0.0479]
[1742787420742,0.4495858,86465.0,86464.0,0.04906]
[1742787422143,0.4495858,86465.0,86464.0,0.0479]
[1742787422342,0.7195858,86465.0,86464.0,0.0479]
[1742787422544,0.4495858,86465.0,86464.0,0.0479]
[1742787423649,0.4495858,86465.0,86464.0,0.04906]
[1742787423850,0.4495858,86465.0,86464.0,0.0479]
[1742787424040,0.4495858,86465.0,86464.0,0.04906]
[1742787425941,0.4495858,86465.0,86464.0,0.0479]
[1742787429250,0.1156621,86457.0,86456.0,0.00017356]
[1742787429559,0.1156621,86457.0,86456.0,0.00133356]
[1742787429560,0.5955021,86457.0,86456.0,0.00133356]
[1742787431056,0.6475021,86457.0,86456.0,0.00133356]
[1742787432550,0.6977021,86457.0,86456.0,0.00133356]
[1742787432956,0.5798221,86457.0,86456.0,0.00133356]
[1742787433156,0.0578357,86450.0,86419.0,0.3608]
[1742787433344,0.1156821,86442.0,86441.0,0.0512]
[1742787433549,0.23416211,86442.0,86441.0,0.0512]
[1742787433755,0.23416211,86442.0,86441.0,0.1668835]
[1742787433952,0.23416211,86442.0,86441.0,0.1680435]
[1742787438362,0.23416211,86442.0,86441.0,0.2219435]
[1742787442959,0.11628211,86442.0,86441.0,0.2219435]
[1742787443149,0.23416211,86442.0,86441.0,0.2219435]
[1742787446465,0.00060001,86442.0,86441.0,0.2219435]
[1742787447058,0.11796,86443.0,86442.0,0.1156821]
[1742787447256,0.11916001,86443.0,86442.0,0.1168821]
[1742787447559,0.11916001,86443.0,86442.0,0.1676821]
[1742787447956,0.3608,86449.0,86448.0,0.1156741]
[1742787447957,0.11788,86449.0,86448.0,0.1156741]
[1742787448265,0.00017356,86450.0,86449.0,0.1156728]
[1742787448570,0.00017356,86450.0,86449.0,0.1679928]
[1742787450070,0.11585656,86450.0,86449.0,0.1679928]
[1742787451070,0.11585656,86450.0,86449.0,0.2181928]
[1742787451366,0.16715656,86450.0,86449.0,0.2181928]
[1742787452066,0.16715656,86450.0,86449.0,0.10252]
[1742787452365,0.28283102,86450.0,86449.0,0.10252]
[1742787452559,0.28283102,86450.0,86449.0,0.0502]
[1742787452958,0.1156924,86443.0,86442.0,0.052]
[1742787453165,0.6943324,86443.0,86442.0,0.05352]
[1742787453358,0.5943324,86443.0,86442.0,0.05352]
[1742787453667,0.1157044,86434.0,86425.0,0.5240153]
[1742787453868,0.5949844,86434.0,86432.0,0.0556]
[1742787454371,0.5949844,86434.0,86433.0,0.16617936]
[1742787454572,0.5949844,86434.0,86433.0,0.16725936]
[1742787454766,0.6454844,86434.0,86433.0,0.16725936]
[1742787455169,0.47928,86434.0,86433.0,0.16725936]
[1742787455370,0.11848,86434.0,86433.0,0.16725936]
[1742787456873,0.00064,86434.0,86433.0,0.16725936]
[1742787457066,0.11792,86435.0,86434.0,0.1157044]
[1742787457267,0.11904001,86435.0,86434.0,0.2200044]
[1742787457466,0.11904001,86435.0,86434.0,0.2211244]
[1742787475380,1e-08,86435.0,86434.0,0.2211244]
[1742787475580,0.3608,86443.0,86442.0,0.1156937]
[1742787475776,0.36220001,86443.0,86442.0,0.1170937]
[1742787476091,0.41440001,86443.0,86442.0,0.1170937]
[1742787476586,0.53009241,86443.0,86442.0,0.1042]
[1742787476784,0.53009241,86443.0,86442.0,0.2184937]
[1742787476986,0.61879241,86443.0,86442.0,0.1042]
[1742787477386,0.61879241,86443.0,86442.0,0.1028]
[1742787477587,0.63016084,86443.0,86442.0,0.1028]
[1742787477783,0.63016084,86443.0,86442.0,0.1042]
[1742787477988,0.63016084,86443.0,86442.0,0.2198937]
[1742787478295,0.90016084,86443.0,86442.0,0.2198937]
[1742787478592,0.63016084,86443.0,86442.0,0.2198937]
[1742787478794,0.74800084,86443.0,86442.0,0.2198937]
[1742787480390,0.1157044,86434.0,86433.0,0.00017356]
[1742787480600,0.1157044,86434.0,86433.0,0.00121356]
[1742787480601,0.68494441,86434.0,86433.0,0.00121356]
[1742787480799,0.59494441,86434.0,86433.0,0.00113356]
[1742787481097,0.1157209,86425.0,86424.0,0.1157133]
[1742787481282,0.5035609,86425.0,86424.0,0.1166733]
[1742787481487,0.27692091,86425.0,86424.0,0.1166733]
[1742787481788,0.79431239,86425.0,86424.0,0.1569733]
[1742787481995,0.27689589,86425.0,86424.0,0.1569733]
[1742787482195,0.27691651,86425.0,86424.0,0.1569733]
[1742787483283,0.11880001,86425.0,86424.0,0.1569733]
[1742787483487,0.11784,86425.0,86424.0,0.1569733]
[1742787483686,0.11784,86425.0,86424.0,0.1993733]
[1742787484109,0.00096001,86425.0,86424.0,0.2003733]
[1742787484288,0.1178,86425.0,86424.0,0.2003733]
[1742787484492,0.11876001,86425.0,86424.0,0.2003733]
[1742787484986,0.00096001,86425.0,86424.0,0.5611733]
[1742787485298,0.4786,86434.0,86433.0,0.1157058]
[1742787485491,0.11876001,86434.0,86433.0,0.1167058]
[1742787485995,0.00096001,86434.0,86433.0,0.1167058]
[1742787486192,8e-05,86436.0,86435.0,0.1157031]
[1742787486391,8e-05,86436.0,86435.0,0.1166631]
[1742787486599,0.4786,86443.0,86442.0,0.1156937]
[1742787486786,0.4796,86443.0,86442.0,0.1166937]
[1742787487400,0.5952924,86443.0,86442.0,0.1977937]
[1742787487590,0.4796,86443.0,86442.0,0.1977937]
[1742787494197,0.7096,86443.0,86442.0,0.1977937]
[1742787494394,0.4796,86443.0,86442.0,0.1977937]
[1742787494601,0.559,86443.0,86442.0,0.1977937]
[1742787495299,0.6746924,86443.0,86442.0,0.1977937]
[1742787495610,0.68652704,86443.0,86442.0,0.1977937]
[1742787496195,0.6746924,86443.0,86442.0,0.1977937]
[1742787496500,0.559,86443.0,86442.0,0.1977937]
[1742787496897,0.4796,86443.0,86442.0,0.1977937]
[1742787497799,0.1188,86443.0,86442.0,0.1977937]
[1742787502895,0.001,86443.0,86442.0,0.1977937]
[1742787503604,0.0004,86456.0,86455.0,0.1156763]
[1742787503904,0.67184682,86470.0,86463.0,0.1156656]
[1742787504105,0.39652385,86464.0,86463.0,0.12863001]
[1742787504909,0.39652385,86464.0,86463.0,0.1944056]
[1742787506210,0.43672385,86464.0,86463.0,0.1944056]
[1742787506905,0.15944,86464.0,86463.0,0.1944056]
[1742787508515,0.11924,86464.0,86463.0,0.1944056]
[1742787509802,0.15744,86464.0,86463.0,0.1944056]
[1742787511409,0.11924,86464.0,86463.0,0.1944056]
[1742787511606,0.00144,86464.0,86463.0,0.1944056]
[1742787511909,0.00057356,86472.0,86471.0,0.1156549]
[1742787512113,0.00057356,86472.0,86471.0,0.1175349]
[1742787512615,0.00057356,86472.0,86471.0,0.1917349]
[1742787512915,0.11622716,86472.0,86471.0,0.07608]
[1742787513210,0.0578314,86466.0,86463.0,0.2101951]
[1742787513417,0.5342955,86466.0,86465.0,0.1156629]
[1742787513707,0.47856,86466.0,86465.0,0.1175429]
[1742787514512,0.5942216,86466.0,86465.0,0.1175429]
[1742787518218,0.8442216,86466.0,86465.0,0.00188]
[1742787518409,0.1156643,86464.0,86463.0,0.0742]
[1742787518615,0.1156643,86464.0,86463.0,0.1917456]
[1742787519514,0.2056643,86464.0,86463.0,0.1917456]
[1742787519722,0.1156643,86464.0,86463.0,0.1917456]
[1742787521413,0.1156643,86464.0,86463.0,0.03938]
[1742787521621,0.3956643,86464.0,86463.0,0.03938]
[1742787521820,0.1156643,86464.0,86463.0,0.03938]
[1742787522216,0.115675,86456.0,86438.0,0.3608]
[1742787522517,0.115675,86456.0,86427.0,0.56636265]
[1742787522518,0.1157017,86436.0,86435.0,0.1157031]
[1742787522715,0.1157017,86436.0,86435.0,0.1171031]
[1742787523022,0.1170217,86436.0,86435.0,0.1171031]
[1742787524210,0.1170217,86436.0,86435.0,0.1531031]
[1742787524416,0.1170217,86436.0,86435.0,0.0374]
[1742787524607,0.1157031,86435.0,86431.0,0.00046279]
[1742787524809,0.1157071,86432.0,86431.0,0.00046279]
[1742787525020,0.23402711,86432.0,86431.0,0.00046279]
[1742787525207,0.26882711,86432.0,86431.0,0.00046279]
[1742787525519,0.38452031,86432.0,86431.0,0.00046279]
[1742787525738,0.62452031,86432.0,86431.0,0.00046279]
[1742787525940,0.38452031,86432.0,86431.0,0.00046279]
[1742787526135,0.38452031,86432.0,86431.0,0.00346279]
[1742787526330,0.34872031,86432.0,86431.0,0.00346279]
[1742787526525,0.23302711,86432.0,86431.0,0.11917119]
[1742787526729,0.23302711,86432.0,86431.0,0.00346279]
[1742787527028,0.23302711,86432.0,86431.0,0.11817119]
[1742787527641,0.26922711,86432.0,86431.0,0.11953119]
[1742787527940,0.26922711,86432.0,86431.0,0.11753119]
[1742787528531,0.23302711,86432.0,86431.0,0.11753119]
[1742787529031,0.26922711,86432.0,86431.0,0.11753119]
[1742787532236,0.15452001,86432.0,86431.0,0.11753119]
[1742787532445,0.27022711,86432.0,86431.0,0.11753119]
[1742787533246,0.30852711,86432.0,86431.0,0.11753119]
[1742787533441,0.19282001,86432.0,86431.0,0.11617119]
[1742787533636,0.30852711,86432.0,86431.0,0.11617119]
[1742787534149,0.15452001,86432.0,86431.0,0.11617119]
[1742787534445,0.15452001,86432.0,86431.0,0.11749119]
[1742787534845,0.27022711,86432.0,86431.0,0.11617119]
[1742787535045,0.30852711,86432.0,86431.0,0.11617119]
[1742787535344,0.15452001,86432.0,86431.0,0.11617119]
[1742787536343,0.15452001,86432.0,86431.0,0.11749119]
[1742787536645,0.11832001,86432.0,86431.0,0.11617119]
[1742787536853,0.11832001,86432.0,86431.0,0.11749119]
[1742787537038,0.11832001,86432.0,86431.0,0.11617119]
[1742787537742,0.00060001,86432.0,86431.0,0.11749119]
[1742787538443,0.11772,86435.0,86434.0,0.1157044]
[1742787538639,0.11772,86435.0,86434.0,0.1172244]
[1742787538851,0.36088,86436.0,86435.0,0.1157031]
[1742787539035,0.36088,86436.0,86435.0,0.1895231]
[1742787540549,0.4765817,86436.0,86435.0,0.1895231]
[1742787541238,0.1157285,86417.0,86416.0,0.115727]
[1742787541550,0.11832001,86417.0,86416.0,0.154467]
[1742787541746,0.11832001,86417.0,86416.0,0.190067]
[1742787542650,0.11832001,86417.0,86416.0,0.225767]
[1742787542845,0.11832001,86417.0,86416.0,0.229767]
[1742787543735,0.11832001,86417.0,86416.0,0.232767]
[1742787544243,0.23404721,86417.0,86416.0,0.232767]
[1742787544448,0.11832001,86417.0,86416.0,0.232767]
[1742787545242,0.23404721,86417.0,86416.0,0.232767]
[1742787545439,0.00060001,86417.0,86416.0,0.232767]
[1742787545644,0.1158032,86420.0,86419.0,0.1157245]
[1742787545843,0.23464321,86420.0,86419.0,0.1167645]
[1742787546057,0.11692321,86420.0,86419.0,0.1167645]
[1742787546350,0.11884001,86420.0,86419.0,0.1167645]
[1742787546953,0.11684321,86420.0,86419.0,0.1187645]
[1742787547156,0.23456321,86420.0,86419.0,0.1187645]
[1742787547546,0.11884001,86420.0,86419.0,0.1217645]
[1742787547745,0.23456321,86420.0,86419.0,0.1217645]
[1742787548442,0.11884001,86420.0,86419.0,0.1217645]
[1742787548958,0.23456321,86420.0,86419.0,0.1217645]
[1742787549158,0.26886321,86420.0,86419.0,0.1217645]
[1742787549359,0.15314001,86420.0,86419.0,0.1217645]
[1742787549759,0.26886321,86420.0,86419.0,0.1217645]
[1742787549963,0.15314001,86420.0,86419.0,0.1217645]
[1742787552452,0.18734001,86420.0,86419.0,0.1217645]
[1742787552758,0.91966321,86420.0,86419.0,0.00604]
[1742787552955,0.90385463,86420.0,86388.0,0.56636265]
[1742787553153,0.4765379,86409.0,86403.0,0.1157456]
[1742787553359,0.70529791,86409.0,86408.0,0.00121356]
[1742787553556,0.59529791,86409.0,86408.0,0.00017356]
[1742787553751,0.71101253,86409.0,86408.0,0.00017356]
[1742787554058,0.71101253,86409.0,86399.0,0.03496297]
[1742787554059,0.1137499,86400.0,86399.0,0.00046297]
[1742787554259,0.5929499,86400.0,86399.0,0.00046297]
[1742787554557,0.5899499,86400.0,86399.0,0.00158297]
[1742787554753,0.70567925,86400.0,86399.0,0.03666297]
[1742787554946,0.78037925,86400.0,86399.0,0.18761427]
[1742787555152,0.78868679,86400.0,86399.0,0.07186297]
[1742787555349,0.79268679,86400.0,86399.0,0.07186297]
[1742787555562,0.79268679,86400.0,86399.0,0.00046297]
[1742787555960,0.78868679,86400.0,86399.0,0.00046297]
[1742787556154,0.79368679,86400.0,86399.0,0.00046297]
[1742787556553,0.0578785,86395.0,86385.0,0.27401998]
[1742787556856,0.0578785,86395.0,86379.0,0.34261601]
[1742787556857,0.1157767,86380.0,86379.0,0.34261601]
[1742787557051,1.11297671,86380.0,86379.0,0.34337601]
[1742787557252,1.20297671,86380.0,86379.0,0.34337601]
[1742787557463,1.37297671,86380.0,86379.0,0.34337601]
[1742787557853,1.48873084,86380.0,86379.0,0.34337601]
[1742787558050,1.49373084,86380.0,86379.0,0.34437601]
[1742787559160,1.49873084,86380.0,86379.0,0.00176]
[1742787559352,1.50723456,86380.0,86379.0,0.001]
[1742787560054,1.52793456,86380.0,86379.0,0.001]
[1742787560857,1.50723456,86380.0,86379.0,0.1167781]
[1742787561663,1.50723456,86380.0,86379.0,0.1896781]
[1742787561863,1.24723456,86380.0,86379.0,0.1896781]
[1742787562059,1.24723456,86380.0,86379.0,0.0739]
[1742787562471,1.12951456,86380.0,86379.0,0.0739]
[1742787562757,1.24723456,86380.0,86379.0,0.0739]
[1742787564164,1.23873084,86380.0,86379.0,0.0739]
[1742787567857,0.88948001,86380.0,86379.0,0.1896781]
[1742787568068,1.00720001,86380.0,86379.0,0.1896781]
[1742787569461,0.88948001,86380.0,86379.0,0.1896781]
[1742787569765,1.00720001,86380.0,86379.0,0.1896781]
[1742787571067,1.23874491,86380.0,86379.0,0.0376]
[1742787571264,0.0578923,86375.0,86371.0,0.00017356]
[1742787571565,0.4765875,86372.0,86371.0,0.00017356]
[1742787571757,0.8449475,86372.0,86371.0,0.00017356]
[1742787572562,0.96072643,86372.0,86371.0,0.00017356]
[1742787574170,0.96472643,86372.0,86371.0,0.00017356]
[1742787574669,0.1158022,86361.0,86360.0,0.106]
[1742787574869,0.5950422,86361.0,86360.0,0.221803]
[1742787575170,0.5950422,86361.0,86360.0,0.10672]
[1742787575469,0.71083587,86361.0,86360.0,0.10672]
[1742787575654,0.82083587,86361.0,86360.0,0.10672]
[1742787575855,0.72247756,86361.0,86360.0,0.10672]
[1742787576059,0.72247756,86361.0,86360.0,0.106]
[1742787576258,0.74177756,86361.0,86360.0,0.106]
[1742787576866,0.74277756,86361.0,86360.0,0.106]
[1742787577060,0.74277756,86361.0,86360.0,0.10676]
[1742787577461,0.71183587,86361.0,86360.0,0.10676]
[1742787577658,0.47831367,86361.0,86360.0,0.2225636]
[1742787577862,0.42384,86361.0,86360.0,0.2225636]
[1742787578263,0.42384,86361.0,86360.0,0.1225636]
[1742787579572,0.11944,86361.0,86360.0,0.1225636]
[1742787581367,0.48024,86361.0,86360.0,0.1225636]
[1742787581968,0.48024,86361.0,86360.0,0.1577636]
[1742787583467,0.36252,86361.0,86360.0,0.1577636]
[1742787583675,0.48024,86361.0,86360.0,0.1577636]
[1742787587279,0.11944,86361.0,86360.0,0.1577636]
[1742787587579,0.48024,86361.0,86360.0,0.1577636]
[1742787589478,0.51444,86361.0,86360.0,0.1577636]
[1742787589680,0.48024,86361.0,86360.0,0.1577636]
[1742787591176,0.51614,86361.0,86360.0,0.1577636]
[1742787592177,0.48024,86361.0,86360.0,0.1577636]
[1742787594671,0.36252,86361.0,86360.0,0.1577636]
[1742787594876,0.48024,86361.0,86360.0,0.1577636]
[1742787595072,0.36252,86361.0,86360.0,0.1577636]
[1742787595277,0.00172,86361.0,86360.0,0.1577636]
[1742787595589,0.001,86361.0,86360.0,0.1577636]
[1742787603591,0.00160001,86361.0,86360.0,0.1577636]
[1742787604590,0.03630001,86361.0,86360.0,0.1577636]
[1742787607291,0.10350001,86361.0,86360.0,0.1577636]
[1742787607494,0.03630001,86361.0,86360.0,0.1577636]
[1742787609696,0.15210221,86361.0,86360.0,0.1577636]
[1742787610099,0.18630221,86361.0,86360.0,0.1577636]
[1742787610900,0.19768369,86361.0,86360.0,0.1577636]
[1742787611704,0.18630221,86361.0,86360.0,0.1577636]
[1742787613603,0.19773572,86361.0,86360.0,0.1577636]
[1742787614788,0.07050001,86361.0,86360.0,0.1577636]
[1742787614993,0.00160001,86361.0,86360.0,0.1577636]
[1742787615403,0.00017367,86369.0,86368.0,0.1157928]
[1742787615604,0.00113368,86369.0,86368.0,0.1167528]
[1742787615805,0.00113368,86369.0,86368.0,0.12838866]
[1742787616301,0.27728385,86379.0,86378.0,0.1157794]
[1742787616502,0.27828385,86379.0,86378.0,0.1166994]
[1742787618197,0.28328385,86379.0,86378.0,0.1166994]
[1742787618396,0.28828385,86379.0,86378.0,0.1166994]
[1742787618798,0.22918385,86379.0,86378.0,0.1166994]
[1742787619203,0.22418385,86379.0,86378.0,0.1166994]
[1742787619423,0.1177781,86379.0,86378.0,0.00092]
[1742787619593,0.1157888,86371.0,86360.0,0.0579016]
[1742787619912,0.1157888,86371.0,86354.0,0.68312269]
[1742787619913,0.2343488,86371.0,86370.0,0.00109367]
[1742787620101,0.2343488,86371.0,86370.0,0.00017367]
[1742787620407,0.41992907,86371.0,86370.0,0.00017367]
[1742787620699,0.30228907,86371.0,86370.0,0.11596387]
[1742787620905,0.41992907,86371.0,86370.0,0.11688387]
[1742787621100,0.30414027,86371.0,86370.0,0.11596387]
[1742787621301,0.30414027,86371.0,86370.0,0.11688387]
[1742787621302,0.18836,86371.0,86370.0,0.11688387]
[1742787621496,0.11856,86371.0,86370.0,0.11688387]
[1742787621806,0.11856,86371.0,86370.0,0.47768387]
[1742787621807,1e-07,86371.0,86370.0,0.47768387]
[1742787622104,8e-05,86373.0,86372.0,0.1157875]
[1742787622308,8e-05,86373.0,86372.0,0.1169875]
[1742787622509,0.0706,86378.0,86377.0,0.1157808]
[1742787622705,0.0706,86378.0,86377.0,0.1170608]
[1742787624607,0.07180001,86378.0,86377.0,0.1170608]
[1742787624801,0.07480001,86378.0,86377.0,0.1170608]
[1742787625199,0.00420001,86378.0,86377.0,0.1170608]
[1742787625395,0.003,86378.0,86377.0,0.8861608]
[1742787626197,0.003,86378.0,86377.0,1.0037608]
[1742787627703,0.003,86378.0,86377.0,1.0388608]
[1742787630105,0.00017367,86387.0,86383.0,0.0578861]
[1742787630306,0.00017367,86387.0,86386.0,0.1157687]
[1742787630609,0.00017367,86387.0,86386.0,0.1169687]
[1742787631307,0.00217367,86387.0,86386.0,0.1169687]
[1742787631909,0.04077367,86387.0,86386.0,0.1169687]
[1742787632210,0.04177367,86387.0,86386.0,0.1169687]
[1742787632507,0.00617367,86387.0,86386.0,0.1169687]
[1742787633006,0.00717367,86387.0,86386.0,0.1169687]
[1742787633414,0.00717367,86387.0,86386.0,0.12828451]
[1742787633711,0.00717367,86387.0,86386.0,0.13701164]
[1742787634011,0.00717367,86387.0,86386.0,0.25461164]
[1742787635610,0.00717367,86387.0,86386.0,0.66291164]
[1742787637910,0.00717367,86387.0,86386.0,0.65418451]
[1742787638998,0.00717367,86387.0,86386.0,1.01498451]
[1742787639204,0.00717367,86387.0,86386.0,1.08428451]
[1742787643912,0.00717367,86387.0,86386.0,0.96668451]
[1742787644118,0.00717367,86387.0,86386.0,1.0729287]
[1742787644416,0.00717367,86387.0,86386.0,0.9553687]
[1742787644602,0.00717367,86387.0,86386.0,0.9668312]
[1742787644802,0.24050107,86387.0,86386.0,0.5252687]
[1742787645016,0.24170108,86387.0,86386.0,0.2995]
[1742787645209,0.1157767,86380.0,86371.0,0.0693]
[1742787645511,0.1157888,86371.0,86370.0,0.00017367]
[1742787645817,0.1158018,86362.0,86361.0,0.1158009]
[1742787646012,0.2333618,86362.0,86361.0,0.1166809]
[1742787646318,0.2342018,86362.0,86361.0,0.1517809]
[1742787646512,0.2342018,86362.0,86361.0,0.1859809]
[1742787647505,0.2342018,86362.0,86361.0,0.1869809]
[1742787647702,0.1184,86362.0,86361.0,0.1869809]
[1742787648416,0.2686009,86362.0,86361.0,0.1869809]
[1742787649513,0.2686009,86362.0,86361.0,0.1176809]
[1742787649715,0.6304009,86362.0,86361.0,0.00088]
[1742787649920,0.6304009,86362.0,86348.0,0.10487074]
[1742787649921,0.1737166,86356.0,86355.0,0.0579048]
[1742787650214,0.1158103,86355.0,86354.0,0.0359]
[1742787650418,0.3025103,86355.0,86354.0,0.1860516]
[1742787651606,0.1867,86355.0,86354.0,0.1860516]
[1742787652007,0.1867,86355.0,86354.0,0.1870516]
[1742787652217,0.3025103,86355.0,86354.0,0.1870516]
[1742787653012,0.3015103,86355.0,86354.0,0.1870516]
[1742787653619,0.00064,86355.0,86354.0,0.1870516]
[1742787653820,0.11756,86357.0,86356.0,0.1158089]
[1742787654128,0.11816001,86357.0,86356.0,0.1164089]
[1742787654513,0.00060001,86357.0,86356.0,0.1164089]
[1742787654714,0.11816001,86357.0,86356.0,0.1164089]
[1742787654914,0.15426001,86357.0,86356.0,0.1164089]
[1742787655922,0.11816001,86357.0,86356.0,0.1164089]
[1742787656119,0.11756,86357.0,86356.0,0.1164089]
[1742787656320,0.1182,86357.0,86356.0,0.1164089]
[1742787656826,0.1877,86357.0,86356.0,0.1164089]
[1742787662926,0.3035076,86357.0,86356.0,0.1164089]
[1742787663121,0.1877,86357.0,86356.0,0.1164089]
[1742787663638,0.41930664,86357.0,86356.0,0.1164089]
[1742787663922,0.41930664,86357.0,86356.0,0.0006]
[1742787664122,0.41930664,86357.0,86355.0,0.1158096]
[1742787664123,0.1158103,86356.0,86355.0,0.1158096]
[1742787664315,0.1164903,86356.0,86355.0,0.00064]
[1742787664515,0.0579051,86355.0,86344.0,0.0579124]
[1742787664714,0.1158237,86345.0,86341.0,0.0006]
[1742787664928,0.1158358,86336.0,86331.0,0.0579207]
[1742787665131,0.60662329,86336.0,86335.0,0.11630041]
[1742787665427,0.72242233,86336.0,86335.0,0.11690041]
[1742787665623,0.71095485,86336.0,86335.0,0.11690041]
[1742787666027,0.77955485,86336.0,86335.0,0.11690041]
[1742787666619,0.77955485,86336.0,86335.0,0.00106331]
[1742787667030,0.79112016,86336.0,86335.0,0.00046331]
[1742787667228,0.115856,86322.0,86319.0,0.00046339]
[1742787667417,0.3009159,86321.0,86320.0,0.0347]
[1742787667722,0.30187591,86321.0,86320.0,0.1511572]
[1742787667926,0.29787591,86321.0,86320.0,0.1511572]
[1742787668723,0.29787591,86321.0,86320.0,0.0353]
[1742787668724,0.18202001,86321.0,86320.0,0.0353]
[1742787668928,0.29787591,86321.0,86320.0,0.1511572]
[1742787669125,0.18202001,86321.0,86320.0,0.0353]
[1742787669330,0.18202001,86321.0,86320.0,0.0377]
[1742787669331,0.41372324,86321.0,86320.0,0.0377]
[1742787669729,0.42238592,86321.0,86320.0,0.0377]
[1742787670321,0.42238592,86321.0,86320.0,0.1535572]
[1742787670523,0.42238592,86321.0,86320.0,0.1541572]
[1742787670724,0.42238592,86321.0,86320.0,0.0383]
[1742787671436,0.42238592,86321.0,86320.0,0.003]
[1742787671624,0.115868,86312.0,86311.0,0.0354]
[1742787671825,0.23438801,86312.0,86311.0,0.0354]
[1742787672233,0.35023534,86312.0,86311.0,0.0354]
[1742787672427,0.38363534,86312.0,86311.0,0.0354]
[1742787672824,0.38363534,86312.0,86311.0,0.0374]
[1742787673429,0.38363534,86312.0,86311.0,0.1532693]
[1742787673630,0.38363534,86312.0,86311.0,0.1538693]
[1742787674025,0.38363534,86312.0,86311.0,0.1184693]
[1742787674429,0.38363534,86312.0,86311.0,0.1178693]
[1742787675741,0.35023534,86312.0,86311.0,0.1178693]
[1742787676039,0.11852001,86312.0,86311.0,0.1178693]
[1742787678232,0.11852001,86312.0,86311.0,0.1184693]
[1742787678538,0.11852001,86312.0,86311.0,0.1521693]
[1742787679461,0.00096001,86312.0,86311.0,0.1521693]
[1742787679735,0.11852001,86312.0,86311.0,0.1521693]
[1742787680341,0.00096001,86312.0,86311.0,0.1521693]
[1742787680640,0.99732,86317.0,86316.0,0.1158626]
[1742787680935,0.99732,86317.0,86316.0,0.1164626]
[1742787680936,0.998,86317.0,86316.0,0.1164626]
[1742787681132,0.00068,86317.0,86316.0,0.1164626]
[1742787681331,0.00017377,86320.0,86319.0,0.1158586]
[1742787681642,0.00093377,86320.0,86319.0,0.1165386]
[1742787681839,0.00085377,86320.0,86319.0,0.1165386]
[1742787682639,0.00017377,86320.0,86319.0,0.1165386]
[1742787684244,0.00017377,86320.0,86319.0,0.1846386]
[1742787688138,0.1158374,86335.0,86331.0,0.0579212]
[1742787688139,0.11756,86332.0,86331.0,0.0579212]
[1742787688436,0.11824,86335.0,86334.0,0.1158384]
[1742787688636,0.11892,86335.0,86334.0,0.1165184]
[1742787688833,0.11824,86335.0,86334.0,0.1165184]
[1742787689037,0.00068,86335.0,86334.0,0.1165184]
[1742787690150,0.1165171,86335.0,86334.0,0.1165184]
[1742787690844,0.00068,86335.0,86334.0,0.1165184]
[1742787691045,0.00368,86335.0,86334.0,0.1165184]
[1742787691240,0.00568,86335.0,86334.0,0.1165184]
[1742787691439,0.005,86335.0,86334.0,0.1165184]
[1742787691641,0.00572,86335.0,86334.0,0.1165184]
[1742787692242,0.005,86335.0,86334.0,0.1165184]
[1742787692844,0.00568,86335.0,86334.0,0.1165184]
[1742787693053,0.005,86335.0,86334.0,0.1165184]
[1742787693348,0.00568,86335.0,86334.0,0.1165184]
[1742787699754,0.00568,86335.0,86334.0,0.4773184]
[1742787702759,0.005,86335.0,86334.0,0.4773184]
[1742787709354,0.00568,86335.0,86334.0,0.4773184]
[1742787710756,0.005,86335.0,86334.0,0.4773184]
[1742787710955,0.00572,86335.0,86334.0,0.4773184]
[1742787714660,0.005,86335.0,86334.0,0.4773184]
[1742787714963,0.00568,86335.0,86334.0,0.4773184]